Workbook

Sheet SEMED
B1: CONTRIBUIÇÃO PATRONAL JANEIRO A JUNHO/2024 FUNSERV - FUNDO DO PLANO DE SAUDE DOS SERV. PUB.DO MUNICIPIO
B2: Empenho | C2: Data Empenho | D2: Unidade | E2: Empenho (R$) | F2: Anulado (R$) | G2: Acréscimo (R$) | H2: Liquidado (R$) | I2: Pago (R$)
B3: 180101 - SECRETARIA MUNICIPAL DE EDUCAÇÃO
A4: JANEIRO | B4: 180101000012024NE00091 | C4: 2024-01-29 | D4: Secretaria Municipal de Educação | E4: R$ 378.382,69 | F4: R$ 0,00 | G4: R$ 0,00 | H4: R$ 378.382,69 | I4: R$ 378,382.69
B5: 180101000012024NE00094 | C5: 2024-01-29 | D5: Secretaria Municipal de Educação | E5: R$ 264.320,47 | F5: R$ 0,00 | G5: R$ 0,00 | H5: R$ 264.320,47 | I5: R$ 264,320.47
B6: 180101000012024NE00098 | C6: 2024-01-29 | D6: Secretaria Municipal de Educação | E6: R$ 390.102,70 | F6: R$ 0,00 | G6: R$ 0,00 | H6: R$ 390.102,70 | I6: R$ 390,102.70
B7: 180101000012024NE00186 | C7: 2024-01-29 | D7: Secretaria Municipal de Educação | E7: R$ 2.822,92 | F7: R$ 0,00 | G7: R$ 0,00 | H7: R$ 2.822,92 | I7: R$ 2,822.92
A8: FEVEREIRO | B8: 180101000012024NE00824 | C8: 2024-02-28 | D8: Secretaria Municipal de Educação | E8: R$ 82.261,80 | F8: R$ 0,00 | G8: R$ 0,00 | H8: R$ 82.261,80 | I8: R$ 82,261.80
A9: MARÇO | B9: 180101000012024NE01904 | C9: 2024-03-26 | D9: Secretaria Municipal de Educação | E9: R$ 93.867,11 | F9: R$ 0,00 | G9: R$ 0,00 | H9: R$ 93.867,11 | I9: R$ 93,867.11
A10: ABRIL | B10: 180101000012024NE02296 | C10: 2024-04-23 | D10: Secretaria Municipal de Educação | E10: R$ 49.377,97 | F10: R$ 0,00 | G10: R$ 0,00 | H10: R$ 49.377,97 | I10: R$ 49,377.97
A11: MAIO | B11: 180101000012024NE02732 | C11: 2024-05-15 | D11: Secretaria Municipal de Educação | E11: R$ 49.377,97 | F11: R$ 49.377,97 | G11: R$ 0,00 | H11: R$ 0,00 | I11: 0
B12: 180101000012024NE02734 | C12: 2024-05-15 | D12: Secretaria Municipal de Educação | E12: R$ 52.079,34 | F12: R$ 0,00 | G12: R$ 0,00 | H12: R$ 52.079,34 | I12: R$ 52,079.34
B13: 180101000012024NE02736 | C13: 2024-05-15 | D13: Secretaria Municipal de Educação | E13: R$ 58.191,19 | F13: R$ 0,00 | G13: R$ 0,00 | H13: R$ 58.191,19 | I13: R$ 58,191.19
B14: 180101000012024NE02930 | C14: 2024-05-27 | D14: Secretaria Municipal de Educação | E14: R$ 648,53 | F14: R$ 0,00 | G14: R$ 0,00 | H14: R$ 648,53 | I14: R$ 648.50
A15: JUNHO | B15: 180101000012024NE03167 | C15: 2024-06-26 | D15: Secretaria Municipal de Educação | E15: R$ 68.926,57 | F15: R$ 0,00 | G15: R$ 0,00 | H15: R$ 68.926,57 | I15: R$ 68,926.57
B16: 180101000012024NE03175 | C16: 2024-06-26 | D16: Secretaria Municipal de Educação | E16: R$ 63.442,48 | F16: R$ 0,00 | G16: R$ 0,00 | H16: R$ 63.442,48 | I16: R$ 63,442.48
B17: TOTAL | I17: =SUM(I4:I16) -> R$ 1,504,423.74
B18: 180102 - FUNDO DE MANUT. E DESENV. DA EDUC. BÁSICA E DE VAL. DOS PROF. DA EDUCAÇÃO
A19: JANEIRO | B19: 180102000012024NE00250 | C19: 2024-01-29 | D19: Fundo de Manut. e Desenv. da Educ. Básica e de Val. dos Prof. da Educação | E19: R$ 1.308.977,58 | F19: R$ 0,00 | G19: R$ 0,00 | H19: R$ 1.308.977,58 | I19: R$ 1,308,977.58
B20: 180102000012024NE00251 | C20: 2024-01-29 | D20: Fundo de Manut. e Desenv. da Educ. Básica e de Val. dos Prof. da Educação | E20: R$ 67.327,79 | F20: R$ 0,00 | G20: R$ 0,00 | H20: R$ 67.327,79 | I20: R$ 67,327.79
B21: 180102000012024NE00252 | C21: 2024-01-29 | D21: Fundo de Manut. e Desenv. da Educ. Básica e de Val. dos Prof. da Educação | E21: R$ 1.452.812,33 | F21: R$ 0,00 | G21: R$ 0,00 | H21: R$ 1.452.812,33 | I21: R$ 1,452,812.33
B22: 180102000012024NE00253 | C22: 2024-01-29 | D22: Fundo de Manut. e Desenv. da Educ. Básica e de Val. dos Prof. da Educação | E22: R$ 65.779,00 | F22: R$ 0,00 | G22: R$ 0,00 | H22: R$ 65.779,00 | I22: R$ 65,779.00
B23: 180102000012024NE00254 | C23: 2024-01-29 | D23: Fundo de Manut. e Desenv. da Educ. Básica e de Val. dos Prof. da Educação | E23: R$ 229.960,47 | F23: R$ 0,00 | G23: R$ 0,00 | H23: R$ 229.960,47 | I23: R$ 229,960.47
B24: 180102000012024NE00255 | C24: 2024-01-29 | D24: Fundo de Manut. e Desenv. da Educ. Básica e de Val. dos Prof. da Educação | E24: R$ 215.496,39 | F24: R$ 0,00 | G24: R$ 0,00 | H24: R$ 215.496,39 | I24: R$ 215,496.39
B25: 180102000012024NE00256 | C25: 2024-01-29 | D25: Fundo de Manut. e Desenv. da Educ. Básica e de Val. dos Prof. da Educação | E25: R$ 123.980,18 | F25: R$ 0,00 | G25: R$ 0,00 | H25: R$ 123.980,18 | I25: R$ 123,980.18
B26: 180102000012024NE00257 | C26: 2024-01-29 | D26: Fundo de Manut. e Desenv. da Educ. Básica e de Val. dos Prof. da Educação | E26: R$ 62.026,91 | F26: R$ 0,00 | G26: R$ 0,00 | H26: R$ 62.026,91 | I26: R$ 62,026.91
B27: 180102000012024NE00258 | C27: 2024-01-29 | D27: Fundo de Manut. e Desenv. da Educ. Básica e de Val. dos Prof. da Educação | E27: R$ 63.416,79 | F27: R$ 0,00 | G27: R$ 0,00 | H27: R$ 63.416,79 | I27: R$ 63,416.79
B28: 180102000012024NE00259 | C28: 2024-01-29 | D28: Fundo de Manut. e Desenv. da Educ. Básica e de Val. dos Prof. da Educação | E28: R$ 48.251,18 | F28: R$ 0,00 | G28: R$ 0,00 | H28: R$ 48.251,18 | I28: R$ 48,251.18
B29: 180102000012024NE00260 | C29: 2024-01-29 | D29: Fundo de Manut. e Desenv. da Educ. Básica e de Val. dos Prof. da Educação | E29: R$ 15.609,96 | F29: R$ 0,00 | G29: R$ 0,00 | H29: R$ 15.609,96 | I29: R$ 15,609.96
B30: 180102000012024NE00261 | C30: 2024-01-29 | D30: Fundo de Manut. e Desenv. da Educ. Básica e de Val. dos Prof. da Educação | E30: R$ 15.860,95 | F30: R$ 0,00 | G30: R$ 0,00 | H30: R$ 15.860,95 | I30: R$ 15,860.95
B31: 180102000012024NE00262 | C31: 2024-01-29 | D31: Fundo de Manut. e Desenv. da Educ. Básica e de Val. dos Prof. da Educação | E31: R$ 12.569,12 | F31: R$ 0,00 | G31: R$ 0,00 | H31: R$ 12.569,12 | I31: R$ 12,569.12
B32: 180102000012024NE00263 | C32: 2024-01-29 | D32: Fundo de Manut. e Desenv. da Educ. Básica e de Val. dos Prof. da Educação | E32: R$ 192.808,69 | F32: R$ 0,00 | G32: R$ 0,00 | H32: R$ 192.808,69 | I32: R$ 192,808.69
B33: 180102000012024NE00264 | C33: 2024-01-29 | D33: Fundo de Manut. e Desenv. da Educ. Básica e de Val. dos Prof. da Educação | E33: R$ 194.476,32 | F33: R$ 0,00 | G33: R$ 0,00 | H33: R$ 194.476,32 | I33: R$ 194,476.32
B34: 180102000012024NE00265 | C34: 2024-01-29 | D34: Fundo de Manut. e Desenv. da Educ. Básica e de Val. dos Prof. da Educação | E34: R$ 156.144,80 | F34: R$ 0,00 | G34: R$ 0,00 | H34: R$ 156.144,80 | I34: R$ 156,144.80
B35: 180102000012024NE00266 | C35: 2024-01-29 | D35: Fundo de Manut. e Desenv. da Educ. Básica e de Val. dos Prof. da Educação | E35: R$ 467.551,65 | F35: R$ 0,00 | G35: R$ 0,00 | H35: R$ 467.551,65 | I35: R$ 467,551.65
B36: 180102000012024NE00267 | C36: 2024-01-29 | D36: Fundo de Manut. e Desenv. da Educ. Básica e de Val. dos Prof. da Educação | E36: R$ 480.370,84 | F36: R$ 0,00 | G36: R$ 0,00 | H36: R$ 480.370,84 | I36: R$ 480,370.84
B37: 180102000012024NE00268 | C37: 2024-01-29 | D37: Fundo de Manut. e Desenv. da Educ. Básica e de Val. dos Prof. da Educação | E37: R$ 403.724,56 | F37: R$ 0,00 | G37: R$ 0,00 | H37: R$ 403.724,56 | I37: R$ 403,724.56
B38: 180102000012024NE00269 | C38: 2024-01-29 | D38: Fundo de Manut. e Desenv. da Educ. Básica e de Val. dos Prof. da Educação | E38: R$ 4.894,55 | F38: R$ 0,00 | G38: R$ 0,00 | H38: R$ 4.894,55 | I38: R$ 4,894.55
B39: 180102000012024NE00270 | C39: 2024-01-29 | D39: Fundo de Manut. e Desenv. da Educ. Básica e de Val. dos Prof. da Educação | E39: R$ 2.875,64 | F39: R$ 0,00 | G39: R$ 0,00 | H39: R$ 2.875,64 | I39: R$ 2,875.64
B40: 180102000012024NE00271 | C40: 2024-01-29 | D40: Fundo de Manut. e Desenv. da Educ. Básica e de Val. dos Prof. da Educação | E40: R$ 1.840,47 | F40: R$ 0,00 | G40: R$ 0,00 | H40: R$ 1.840,47 | I40: R$ 1,840.47
B41: 180102000012024NE00272 | C41: 2024-01-29 | D41: Fundo de Manut. e Desenv. da Educ. Básica e de Val. dos Prof. da Educação | E41: R$ 520,64 | F41: R$ 0,00 | G41: R$ 0,00 | H41: R$ 520,64 | I41: R$ 520.64
B42: 180102000012024NE00273 | C42: 2024-01-29 | D42: Fundo de Manut. e Desenv. da Educ. Básica e de Val. dos Prof. da Educação | E42: R$ 12.320,50 | F42: R$ 12.320,50 | G42: R$ 0,00 | H42: R$ 0,00 | I42: 0
B43: 180102000012024NE00274 | C43: 2024-01-29 | D43: Fundo de Manut. e Desenv. da Educ. Básica e de Val. dos Prof. da Educação | E43: R$ 95.176,41 | F43: R$ 0,00 | G43: R$ 0,00 | H43: R$ 95.176,41 | I43: R$ 95,176.41
B44: 180102000012024NE00275 | C44: 2024-01-29 | D44: Fundo de Manut. e Desenv. da Educ. Básica e de Val. dos Prof. da Educação | E44: R$ 92.996,27 | F44: R$ 0,00 | G44: R$ 0,00 | H44: R$ 92.996,27 | I44: R$ 92,996.27
B45: 180102000012024NE00277 | C45: 2024-01-29 | D45: Fundo de Manut. e Desenv. da Educ. Básica e de Val. dos Prof. da Educação | E45: R$ 13.320,50 | F45: R$ 0,00 | G45: R$ 0,00 | H45: R$ 13.320,50 | I45: R$ 13,320.50
B46: 180102000012024NE00278 | C46: 2024-01-29 | D46: Fundo de Manut. e Desenv. da Educ. Básica e de Val. dos Prof. da Educação | E46: R$ 1.131.075,99 | F46: R$ 0,00 | G46: R$ 0,00 | H46: R$ 1.131.075,99 | I46: R$ 1,131,075.99
B47: 180102000012024NE00316 | C47: 2024-01-29 | D47: Fundo de Manut. e Desenv. da Educ. Básica e de Val. dos Prof. da Educação | E47: R$ 7.029,64 | F47: R$ 0,00 | G47: R$ 0,00 | H47: R$ 7.029,64 | I47: R$ 7,029.64
B48: 180102000012024NE00317 | C48: 2024-01-29 | D48: Fundo de Manut. e Desenv. da Educ. Básica e de Val. dos Prof. da Educação | E48: R$ 1.638,58 | F48: R$ 0,00 | G48: R$ 0,00 | H48: R$ 1.638,58 | I48: R$ 1,638.58
B49: 180102000012024NE00318 | C49: 2024-01-29 | D49: Fundo de Manut. e Desenv. da Educ. Básica e de Val. dos Prof. da Educação | E49: R$ 51,94 | F49: R$ 0,00 | G49: R$ 0,00 | H49: R$ 51,94 | I49: R$ 51.94
B50: 180102000012024NE00319 | C50: 2024-01-29 | D50: Fundo de Manut. e Desenv. da Educ. Básica e de Val. dos Prof. da Educação | E50: R$ 1.498,97 | F50: R$ 0,00 | G50: R$ 0,00 | H50: R$ 1.498,97 | I50: R$ 1,498.97 | J50: =SUM(I19:I50) -> R$ 6,930,065.11
A51: FEVEREIRO | B51: 180102000012024NE00560 | C51: 2024-02-28 | D51: Fundo de Manut. e Desenv. da Educ. Básica e de Val. dos Prof. da Educação | E51: R$ 1.384.443,38 | F51: R$ 0,00 | G51: R$ 0,00 | H51: R$ 1.384.443,38 | I51: R$ 1,384,443.38
B52: 180102000012024NE00561 | C52: 2024-02-28 | D52: Fundo de Manut. e Desenv. da Educ. Básica e de Val. dos Prof. da Educação | E52: R$ 53.408,05 | F52: R$ 0,00 | G52: R$ 0,00 | H52: R$ 53.408,05 | I52: R$ 53,408.05
B53: 180102000012024NE00562 | C53: 2024-02-28 | D53: Fundo de Manut. e Desenv. da Educ. Básica e de Val. dos Prof. da Educação | E53: R$ 13.651,82 | F53: R$ 0,00 | G53: R$ 0,00 | H53: R$ 13.651,82 | I53: R$ 13,651.82
B54: 180102000012024NE00563 | C54: 2024-02-28 | D54: Fundo de Manut. e Desenv. da Educ. Básica e de Val. dos Prof. da Educação | E54: R$ 162.549,79 | F54: R$ 0,00 | G54: R$ 0,00 | H54: R$ 162.549,79 | I54: R$ 162,549.79
B55: 180102000012024NE00564 | C55: 2024-02-28 | D55: Fundo de Manut. e Desenv. da Educ. Básica e de Val. dos Prof. da Educação | E55: R$ 616.291,31 | F55: R$ 0,00 | G55: R$ 0,00 | H55: R$ 616.291,31 | I55: R$ 616,291.31
B56: 180102000012024NE00565 | C56: 2024-02-28 | D56: Fundo de Manut. e Desenv. da Educ. Básica e de Val. dos Prof. da Educação | E56: R$ 30.559,70 | F56: R$ 0,00 | G56: R$ 0,00 | H56: R$ 30.559,70 | I56: R$ 30,559.70
B57: 180102000012024NE00566 | C57: 2024-02-28 | D57: Fundo de Manut. e Desenv. da Educ. Básica e de Val. dos Prof. da Educação | E57: R$ 35.969,29 | F57: R$ 0,00 | G57: R$ 0,00 | H57: R$ 35.969,29 | I57: R$ 35,969.29
B58: 180102000012024NE00567 | C58: 2024-02-28 | D58: Fundo de Manut. e Desenv. da Educ. Básica e de Val. dos Prof. da Educação | E58: R$ 21.306,79 | F58: R$ 0,00 | G58: R$ 0,00 | H58: R$ 21.306,79 | I58: R$ 21,306.79
B59: 180102000012024NE00568 | C59: 2024-02-28 | D59: Fundo de Manut. e Desenv. da Educ. Básica e de Val. dos Prof. da Educação | E59: R$ 43.297,73 | F59: R$ 0,00 | G59: R$ 0,00 | H59: R$ 43.297,73 | I59: R$ 43,297.73
B60: 180102000012024NE00569 | C60: 2024-02-28 | D60: Fundo de Manut. e Desenv. da Educ. Básica e de Val. dos Prof. da Educação | E60: R$ 345,03 | F60: R$ 345,03 | G60: R$ 0,00 | H60: R$ 0,00 | I60: 0
B61: 180102000012024NE00570 | C61: 2024-02-28 | D61: Fundo de Manut. e Desenv. da Educ. Básica e de Val. dos Prof. da Educação | E61: R$ 124.466,19 | F61: R$ 0,00 | G61: R$ 0,00 | H61: R$ 124.466,19 | I61: R$ 124,466.19
B62: 180102000012024NE00573 | C62: 2024-02-28 | D62: Fundo de Manut. e Desenv. da Educ. Básica e de Val. dos Prof. da Educação | E62: R$ 345,03 | F62: R$ 0,00 | G62: R$ 0,00 | H62: R$ 345,03 | I62: R$ 345.03 | J62: =SUM(I51:I62) -> R$ 2,486,289.08
A63: MARÇO | B63: 180102000012024NE00848 | C63: 2024-03-26 | D63: Fundo de Manut. e Desenv. da Educ. Básica e de Val. dos Prof. da Educação | E63: R$ 1.514.969,84 | F63: R$ 0,00 | G63: R$ 0,00 | H63: R$ 1.514.969,84 | I63: R$ 1,514,969.84
B64: 180102000012024NE00849 | C64: 2024-03-26 | D64: Fundo de Manut. e Desenv. da Educ. Básica e de Val. dos Prof. da Educação | E64: R$ 57.610,15 | F64: R$ 0,00 | G64: R$ 0,00 | H64: R$ 57.610,15 | I64: R$ 57,610.15
B65: 180102000012024NE00850 | C65: 2024-03-26 | D65: Fundo de Manut. e Desenv. da Educ. Básica e de Val. dos Prof. da Educação | E65: R$ 17.568,56 | F65: R$ 0,00 | G65: R$ 0,00 | H65: R$ 17.568,56 | I65: R$ 17,568.56
B66: 180102000012024NE00851 | C66: 2024-03-26 | D66: Fundo de Manut. e Desenv. da Educ. Básica e de Val. dos Prof. da Educação | E66: R$ 196.177,90 | F66: R$ 0,00 | G66: R$ 0,00 | H66: R$ 196.177,90 | I66: R$ 196,177.90
B67: 180102000012024NE00852 | C67: 2024-03-26 | D67: Fundo de Manut. e Desenv. da Educ. Básica e de Val. dos Prof. da Educação | E67: R$ 661.894,19 | F67: R$ 0,00 | G67: R$ 0,00 | H67: R$ 661.894,19 | I67: R$ 661,894.19
B68: 180102000012024NE00853 | C68: 2024-03-26 | D68: Fundo de Manut. e Desenv. da Educ. Básica e de Val. dos Prof. da Educação | E68: R$ 31.237,89 | F68: R$ 0,00 | G68: R$ 0,00 | H68: R$ 31.237,89 | I68: R$ 31,237.89
B69: 180102000012024NE00854 | C69: 2024-03-26 | D69: Fundo de Manut. e Desenv. da Educ. Básica e de Val. dos Prof. da Educação | E69: R$ 37.099,87 | F69: R$ 0,00 | G69: R$ 0,00 | H69: R$ 37.099,87 | I69: R$ 37,099.87
B70: 180102000012024NE00855 | C70: 2024-03-26 | D70: Fundo de Manut. e Desenv. da Educ. Básica e de Val. dos Prof. da Educação | E70: R$ 24.018,39 | F70: R$ 0,00 | G70: R$ 0,00 | H70: R$ 24.018,39 | I70: R$ 24,018.39
B71: 180102000012024NE00856 | C71: 2024-03-26 | D71: Fundo de Manut. e Desenv. da Educ. Básica e de Val. dos Prof. da Educação | E71: R$ 79.821,94 | F71: R$ 0,00 | G71: R$ 0,00 | H71: R$ 79.821,94 | I71: R$ 79,821.94
B72: 180102000012024NE00857 | C72: 2024-03-26 | D72: Fundo de Manut. e Desenv. da Educ. Básica e de Val. dos Prof. da Educação | E72: R$ 345,03 | F72: R$ 0,00 | G72: R$ 0,00 | H72: R$ 345,03 | I72: R$ 345.03
B73: 180102000012024NE00858 | C73: 2024-03-26 | D73: Fundo de Manut. e Desenv. da Educ. Básica e de Val. dos Prof. da Educação | E73: R$ 122.486,63 | F73: R$ 0,00 | G73: R$ 0,00 | H73: R$ 122.486,63 | I73: R$ 122,486.63
B74: 180102000012024NE00862 | C74: 2024-03-26 | D74: Fundo de Manut. e Desenv. da Educ. Básica e de Val. dos Prof. da Educação | E74: R$ 52,96 | F74: R$ 0,00 | G74: R$ 0,00 | H74: R$ 52,96 | I74: R$ 52.96
B75: 180102000012024NE00863 | C75: 2024-03-26 | D75: Fundo de Manut. e Desenv. da Educ. Básica e de Val. dos Prof. da Educação | E75: R$ 79,12 | F75: R$ 0,00 | G75: R$ 0,00 | H75: R$ 79,12 | I75: R$ 79.12
B76: 180102000012024NE00864 | C76: 2024-03-26 | D76: Fundo de Manut. e Desenv. da Educ. Básica e de Val. dos Prof. da Educação | E76: R$ 23,26 | F76: R$ 0,00 | G76: R$ 0,00 | H76: R$ 23,26 | I76: R$ 23.26 | J76: =SUM(I63:I76) -> R$ 2,743,385.73
A77: ABRIL | B77: 180102000012024NE01119 | C77: 2024-04-23 | D77: Fundo de Manut. e Desenv. da Educ. Básica e de Val. dos Prof. da Educação | E77: R$ 1.278.315,19 | F77: R$ 0,00 | G77: R$ 0,00 | H77: R$ 1.278.315,19 | I77: R$ 1,278,315.19
B78: 180102000012024NE01120 | C78: 2024-04-23 | D78: Fundo de Manut. e Desenv. da Educ. Básica e de Val. dos Prof. da Educação | E78: R$ 213.266,28 | F78: R$ 0,00 | G78: R$ 0,00 | H78: R$ 213.266,28 | I78: R$ 213,266.28
B79: 180102000012024NE01121 | C79: 2024-04-23 | D79: Fundo de Manut. e Desenv. da Educ. Básica e de Val. dos Prof. da Educação | E79: R$ 54.967,32 | F79: R$ 0,00 | G79: R$ 0,00 | H79: R$ 54.967,32 | I79: R$ 54,967.32
B80: 180102000012024NE01122 | C80: 2024-04-23 | D80: Fundo de Manut. e Desenv. da Educ. Básica e de Val. dos Prof. da Educação | E80: R$ 16.718,45 | F80: R$ 0,00 | G80: R$ 0,00 | H80: R$ 16.718,45 | I80: R$ 16,718.45
B81: 180102000012024NE01123 | C81: 2024-04-23 | D81: Fundo de Manut. e Desenv. da Educ. Básica e de Val. dos Prof. da Educação | E81: R$ 183.449,95 | F81: R$ 0,00 | G81: R$ 0,00 | H81: R$ 183.449,95 | I81: R$ 183,449.95
B82: 180102000012024NE01124 | C82: 2024-04-23 | D82: Fundo de Manut. e Desenv. da Educ. Básica e de Val. dos Prof. da Educação | E82: R$ 657.403,58 | F82: R$ 0,00 | G82: R$ 0,00 | H82: R$ 657.403,58 | I82: R$ 657,403.58
B83: 180102000012024NE01125 | C83: 2024-04-23 | D83: Fundo de Manut. e Desenv. da Educ. Básica e de Val. dos Prof. da Educação | E83: R$ 32.844,95 | F83: R$ 0,00 | G83: R$ 0,00 | H83: R$ 32.844,95 | I83: R$ 32,844.95
B84: 180102000012024NE01126 | C84: 2024-04-23 | D84: Fundo de Manut. e Desenv. da Educ. Básica e de Val. dos Prof. da Educação | E84: R$ 35.693,48 | F84: R$ 35.693,48 | G84: R$ 0,00 | H84: R$ 0,00 | I84: 0
B85: 180102000012024NE01128 | C85: 2024-04-23 | D85: Fundo de Manut. e Desenv. da Educ. Básica e de Val. dos Prof. da Educação | E85: R$ 38.693,48 | F85: R$ 0,00 | G85: R$ 0,00 | H85: R$ 38.693,48 | I85: R$ 38,693.48
B86: 180102000012024NE01129 | C86: 2024-04-23 | D86: Fundo de Manut. e Desenv. da Educ. Básica e de Val. dos Prof. da Educação | E86: R$ 64.723,84 | F86: R$ 0,00 | G86: R$ 0,00 | H86: R$ 64.723,84 | I86: R$ 64,723.84
B87: 180102000012024NE01130 | C87: 2024-04-23 | D87: Fundo de Manut. e Desenv. da Educ. Básica e de Val. dos Prof. da Educação | E87: R$ 84.364,37 | F87: R$ 0,00 | G87: R$ 0,00 | H87: R$ 84.364,37 | I87: R$ 84,364.37
B88: 180102000012024NE01131 | C88: 2024-04-23 | D88: Fundo de Manut. e Desenv. da Educ. Básica e de Val. dos Prof. da Educação | E88: R$ 1.417,49 | F88: R$ 0,00 | G88: R$ 0,00 | H88: R$ 1.417,49 | I88: R$ 1,417.49
B89: 180102000012024NE01132 | C89: 2024-04-23 | D89: Fundo de Manut. e Desenv. da Educ. Básica e de Val. dos Prof. da Educação | E89: R$ 122.865,88 | F89: R$ 0,00 | G89: R$ 0,00 | H89: R$ 122.865,88 | I89: R$ 122,865.88 | J89: =SUM(I77:I89) -> R$ 2,749,030.78
A90: MAIO | B90: 180102000012024NE01367 | C90: 2024-05-15 | D90: Fundo de Manut. e Desenv. da Educ. Básica e de Val. dos Prof. da Educação | E90: R$ 123,96 | F90: R$ 0,00 | G90: R$ 0,00 | H90: R$ 123,96 | I90: R$ 123.96
B91: 180102000012024NE01368 | C91: 2024-05-15 | D91: Fundo de Manut. e Desenv. da Educ. Básica e de Val. dos Prof. da Educação | E91: R$ 238,28 | F91: R$ 0,00 | G91: R$ 0,00 | H91: R$ 238,28 | I91: R$ 238.28
B92: 180102000012024NE01369 | C92: 2024-05-15 | D92: Fundo de Manut. e Desenv. da Educ. Básica e de Val. dos Prof. da Educação | E92: R$ 1.557.567,96 | F92: R$ 0,00 | G92: R$ 0,00 | H92: R$ 1.557.567,96 | I92: R$ 1,557,567.96
B93: 180102000012024NE01370 | C93: 2024-05-15 | D93: Fundo de Manut. e Desenv. da Educ. Básica e de Val. dos Prof. da Educação | E93: R$ 18.011,67 | F93: R$ 0,00 | G93: R$ 0,00 | H93: R$ 18.011,67 | I93: R$ 18,011.67
B94: 180102000012024NE01371 | C94: 2024-05-15 | D94: Fundo de Manut. e Desenv. da Educ. Básica e de Val. dos Prof. da Educação | E94: R$ 653.517,61 | F94: R$ 0,00 | G94: R$ 0,00 | H94: R$ 653.517,61 | I94: R$ 653,517.61
B95: 180102000012024NE01372 | C95: 2024-05-15 | D95: Fundo de Manut. e Desenv. da Educ. Básica e de Val. dos Prof. da Educação | E95: R$ 181.765,36 | F95: R$ 0,00 | G95: R$ 0,00 | H95: R$ 181.765,36 | I95: R$ 181,765.36
B96: 180102000012024NE01373 | C96: 2024-05-15 | D96: Fundo de Manut. e Desenv. da Educ. Básica e de Val. dos Prof. da Educação | E96: R$ 1.418,22 | F96: R$ 0,00 | G96: R$ 0,00 | H96: R$ 1.418,22 | I96: R$ 1,418.22
B97: 180102000012024NE01374 | C97: 2024-05-15 | D97: Fundo de Manut. e Desenv. da Educ. Básica e de Val. dos Prof. da Educação | E97: R$ 153.495,15 | F97: R$ 0,00 | G97: R$ 0,00 | H97: R$ 153.495,15 | I97: R$ 153,495.15
B98: 180102000012024NE01375 | C98: 2024-05-15 | D98: Fundo de Manut. e Desenv. da Educ. Básica e de Val. dos Prof. da Educação | E98: R$ 110.932,01 | F98: R$ 0,00 | G98: R$ 0,00 | H98: R$ 110.932,01 | I98: R$ 110,932.01
B99: 180102000012024NE01376 | C99: 2024-05-15 | D99: Fundo de Manut. e Desenv. da Educ. Básica e de Val. dos Prof. da Educação | E99: R$ 54.496,55 | F99: R$ 0,00 | G99: R$ 0,00 | H99: R$ 54.496,55 | I99: R$ 54,496.55
B100: 180102000012024NE01465 | C100: 2024-05-27 | D100: Fundo de Manut. e Desenv. da Educ. Básica e de Val. dos Prof. da Educação | E100: R$ 536,52 | F100: R$ 0,00 | G100: R$ 0,00 | H100: R$ 536,52 | I100: R$ 536.52
B101: 180102000012024NE01466 | C101: 2024-05-27 | D101: Fundo de Manut. e Desenv. da Educ. Básica e de Val. dos Prof. da Educação | E101: R$ 405,01 | F101: R$ 0,00 | G101: R$ 0,00 | H101: R$ 405,01 | I101: R$ 405.01
B102: 180102000012024NE01467 | C102: 2024-05-27 | D102: Fundo de Manut. e Desenv. da Educ. Básica e de Val. dos Prof. da Educação | E102: R$ 156,13 | F102: R$ 0,00 | G102: R$ 0,00 | H102: R$ 156,13 | I102: R$ 156.13
B103: 180102000012024NE01468 | C103: 2024-05-27 | D103: Fundo de Manut. e Desenv. da Educ. Básica e de Val. dos Prof. da Educação | E103: R$ 169,10 | F103: R$ 0,00 | G103: R$ 0,00 | H103: R$ 169,10 | I103: R$ 169.10
B104: 180102000012024NE01469 | C104: 2024-05-27 | D104: Fundo de Manut. e Desenv. da Educ. Básica e de Val. dos Prof. da Educação | E104: R$ 529,76 | F104: R$ 0,00 | G104: R$ 0,00 | H104: R$ 529,76 | I104: R$ 529.76 | J104: =SUM(I90:I104) -> R$ 2,733,363.29
A105: JUNHO | B105: 180102000012024NE01753 | C105: 2024-06-26 | D105: Fundo de Manut. e Desenv. da Educ. Básica e de Val. dos Prof. da Educação | E105: R$ 985,64 | F105: R$ 0,00 | G105: R$ 0,00 | H105: R$ 985,64 | I105: R$ 985.64
B106: 180102000012024NE01754 | C106: 2024-06-26 | D106: Fundo de Manut. e Desenv. da Educ. Básica e de Val. dos Prof. da Educação | E106: R$ 1.175,42 | F106: R$ 0,00 | G106: R$ 0,00 | H106: R$ 1.175,42 | I106: R$ 1,175.42
B107: 180102000012024NE01755 | C107: 2024-06-26 | D107: Fundo de Manut. e Desenv. da Educ. Básica e de Val. dos Prof. da Educação | E107: R$ 139,09 | F107: R$ 0,00 | G107: R$ 0,00 | H107: R$ 139,09 | I107: R$ 139.09
B108: 180102000012024NE01756 | C108: 2024-06-26 | D108: Fundo de Manut. e Desenv. da Educ. Básica e de Val. dos Prof. da Educação | E108: R$ 869,61 | F108: R$ 0,00 | G108: R$ 0,00 | H108: R$ 869,61 | I108: R$ 869.61
B109: 180102000012024NE01757 | C109: 2024-06-26 | D109: Fundo de Manut. e Desenv. da Educ. Básica e de Val. dos Prof. da Educação | E109: R$ 1.554.673,82 | F109: R$ 0,00 | G109: R$ 0,00 | H109: R$ 1.554.673,82 | I109: R$ 1,554,673.82
B110: 180102000012024NE01758 | C110: 2024-06-26 | D110: Fundo de Manut. e Desenv. da Educ. Básica e de Val. dos Prof. da Educação | E110: R$ 57.300,35 | F110: R$ 0,00 | G110: R$ 0,00 | H110: R$ 57.300,35 | I110: R$ 57,300.35
B111: 180102000012024NE01759 | C111: 2024-06-26 | D111: Fundo de Manut. e Desenv. da Educ. Básica e de Val. dos Prof. da Educação | E111: R$ 18.237,55 | F111: R$ 0,00 | G111: R$ 0,00 | H111: R$ 18.237,55 | I111: R$ 18,237.55
B112: 180102000012024NE01760 | C112: 2024-06-26 | D112: Fundo de Manut. e Desenv. da Educ. Básica e de Val. dos Prof. da Educação | E112: R$ 189.484,52 | F112: R$ 0,00 | G112: R$ 0,00 | H112: R$ 189.484,52 | I112: R$ 189,484.52
B113: 180102000012024NE01761 | C113: 2024-06-26 | D113: Fundo de Manut. e Desenv. da Educ. Básica e de Val. dos Prof. da Educação | E113: R$ 684.313,67 | F113: R$ 0,00 | G113: R$ 0,00 | H113: R$ 684.313,67 | I113: R$ 684,313.67
B114: 180102000012024NE01762 | C114: 2024-06-26 | D114: Fundo de Manut. e Desenv. da Educ. Básica e de Val. dos Prof. da Educação | E114: R$ 34.941,84 | F114: R$ 0,00 | G114: R$ 0,00 | H114: R$ 34.941,84 | I114: R$ 34,941.84
B115: 180102000012024NE01763 | C115: 2024-06-26 | D115: Fundo de Manut. e Desenv. da Educ. Básica e de Val. dos Prof. da Educação | E115: R$ 43.015,42 | F115: R$ 0,00 | G115: R$ 0,00 | H115: R$ 43.015,42 | I115: R$ 43,015.42
B116: 180102000012024NE01764 | C116: 2024-06-26 | D116: Fundo de Manut. e Desenv. da Educ. Básica e de Val. dos Prof. da Educação | E116: R$ 74.435,79 | F116: R$ 0,00 | G116: R$ 0,00 | H116: R$ 74.435,79 | I116: R$ 74,435.79
B117: 180102000012024NE01765 | C117: 2024-06-26 | D117: Fundo de Manut. e Desenv. da Educ. Básica e de Val. dos Prof. da Educação | E117: R$ 85.931,73 | F117: R$ 0,00 | G117: R$ 0,00 | H117: R$ 85.931,73 | I117: R$ 85,931.73
B118: 180102000012024NE01766 | C118: 2024-06-26 | D118: Fundo de Manut. e Desenv. da Educ. Básica e de Val. dos Prof. da Educação | E118: R$ 1.479,86 | F118: R$ 0,00 | G118: R$ 0,00 | H118: R$ 1.479,86 | I118: R$ 1,479.86
B119: 180102000012024NE01767 | C119: 2024-06-26 | D119: Fundo de Manut. e Desenv. da Educ. Básica e de Val. dos Prof. da Educação | E119: R$ 118.160,93 | F119: R$ 0,00 | G119: R$ 0,00 | H119: R$ 118.160,93 | I119: R$ 118,160.93 | J119: =SUM(I105:I119) -> R$ 2,865,145.24
B120: TOTAL | I120: =SUM(I19:I119) -> R$ 20,507,279.23
B122: TOTAL: FONTE 180101 (SEMED) + 180102 (FUNDEB) | I122: =SUM(I17+I120) -> R$ 22,011,702.97

Sheet FUNSERV 2024
B1: RECEITAS (140702) FUNSERV - FUNDO DO PLANO DE SAUDE DOS SERV. PUB.DO MUNICIPIO - JANEIRO A JUNHO/2024
B2: Classificação | C2: Unidade | D2: Descrição | E2: Arrecadado (R$)
E3: JANEIRO | F3: FEVEREIRO | G3: MARÇO | H3: ABRIL | I3: MAIO | J3: JUNHO
B4: 1216031101 | C4: Fundo de Custeio do Plano de Saúde dos Servidores Públicos do Munic. de Manaus | D4: CONTRIBUIÇÃO PARA ASSISTÊNCIA MÉDICA DOS SERVIDORES PÚBLICOS MUNICIPAIS - FUNSERV | E4: R$ 873,280.61 | F4: R$ 7,287,493.14 | G4: R$ 6,684,367.00 | H4: R$ 9,851,256.37 | I4: R$ 7,629,579.51 | J4: R$ 7,050,930.34
B5: 1321010198 | C5: Fundo de Custeio do Plano de Saúde dos Servidores Públicos do Munic. de Manaus | D5: RENDIMENTOS APLICAÇÃO FINANCEIRA - RECURSOS VINCULADOS | E5: R$ 47,476.84 | F5: R$ 51,650.71 | G5: R$ 48,028.94 | H5: R$ 54,769.09 | I5: R$ 35,848.04 | J5: R$ 11,881.63
B6: 1611010108 | C6: Fundo de Custeio do Plano de Saúde dos Servidores Públicos do Munic. de Manaus | D6: SERVIÇOS DE EXPEDIÇÃO DE DOCUMENTOS ADMINISTRATIVOS | E6: R$ 2,320.00 | F6: R$ 1,180.00 | G6: R$ 1,600.00 | H6: R$ 2,100.00 | I6: R$ 1,860.00 | J6: R$ 1,800.00
B7: 1922990103 | C7: Fundo de Custeio do Plano de Saúde dos Servidores Públicos do Munic. de Manaus | D7: RESTITUIÇÕES DESCONTADAS EM FOLHA | E7: R$ 283.36 | F7: R$ 713.32 | G7: R$ 449.44 | H7: R$ 1,212.33 | I7: R$ 331.90 | J7: R$ 261.00
B8: 1999992138 | C8: Fundo de Custeio do Plano de Saúde dos Servidores Públicos do Munic. de Manaus | D8: OUTRAS RECEITAS - MANAUSMED | E8: 0 | F8: R$ 102,122.55 | G8: R$ 44,897.48 | H8: R$ 53,003.17 | I8: R$ 60,690.22 | J8: R$ 60,964.09
B9: 7216031101 | C9: Fundo de Custeio do Plano de Saúde dos Servidores Públicos do Munic. de Manaus | D9: CONTRIBUIÇÃO DO SERVIDOR PÚBLICO FUNSERV | E9: R$ 422,106.97 | F9: R$ 13,198,587.32 | G9: R$ 6,264,240.86 | H9: R$ 9,359,532.50 | I9: R$ 6,009,452.26 | J9: R$ 6,622,044.49
B10: TOTAL | E10: =SUM(E4:E9) -> R$ 1,345,467.78 | F10: R$ 20,641,747.04 | G10: R$ 13,043,583.72 | H10: R$ 19,321,873.46 | I10: R$ 13,737,761.93 | J10: R$ 13,747,881.55
B11: ARRECADAÇÃO DE JANEIRO A JUNHO/2024 | E11: =SUM(E10:J10) -> R$ 81,838,315.48

Sheet FUNSERV 2023
B1: RECEITAS (140702) FUNSERV - FUNDO DO PLANO DE SAUDE DOS SERV. PUB.DO MUNICIPIO - JANEIRO A JUNHO/2023
B2: Classificação | C2: Unidade | D2: Descrição | E2: Arrecadado (R$)
E3: JANEIRO | F3: FEVEREIRO | G3: MARÇO | H3: ABRIL | I3: MAIO | J3: JUNHO
B4: 1216031101 | C4: Fundo de Custeio do Plano de Saúde dos Servidores Públicos do Munic. de Manaus | D4: CONTRIBUIÇÃO PARA ASSISTÊNCIA MÉDICA DOS SERVIDORES PÚBLICOS MUNICIPAIS - FUNSERV | E4: R$ 106,775.87 | F4: R$ 3,132,418.58 | G4: R$ 5,171,493.33 | H4: R$ 4,227,289.54 | I4: R$ 4,140,602.17 | J4: R$ 4,364,073.33
B5: 1321010198 | C5: Fundo de Custeio do Plano de Saúde dos Servidores Públicos do Munic. de Manaus | D5: RENDIMENTOS APLICAÇÃO FINANCEIRA - RECURSOS VINCULADOS | E5: R$ 54,282.56 | F5: R$ 58,290.18 | G5: R$ 46,864.58 | H5: R$ 18,145.61 | I5: R$ 23,744.98 | J5: R$ 24,994.13
B6: 1611010108 | C6: Fundo de Custeio do Plano de Saúde dos Servidores Públicos do Munic. de Manaus | D6: SERVIÇOS DE EXPEDIÇÃO DE DOCUMENTOS ADMINISTRATIVOS | E6: R$ 2,720.00 | F6: R$ 2,240.00 | G6: R$ 2,100.00 | H6: R$ 1,560.00 | I6: R$ 2,000.00 | J6: R$ 2,860.00
B7: 1922990103 | C7: Fundo de Custeio do Plano de Saúde dos Servidores Públicos do Munic. de Manaus | D7: RESTITUIÇÕES DESCONTADAS EM FOLHA | E7: R$ 356.81 | F7: R$ 513.10 | G7: R$ 628.53 | H7: R$ 311.95 | I7: R$ 772.93 | J7: R$ 343.21
B8: 1999992138 | C8: Fundo de Custeio do Plano de Saúde dos Servidores Públicos do Munic. de Manaus | D8: OUTRAS RECEITAS - MANAUSMED | E8: R$ 22,167.31 | F8: R$ 24,405.54 | G8: 0 | H8: 0 | I8: R$ 31,776.70 | J8: R$ 30,737.42
B9: 7216031101 | C9: Fundo de Custeio do Plano de Saúde dos Servidores Públicos do Munic. de Manaus | D9: CONTRIBUIÇÃO DO SERVIDOR PÚBLICO FUNSERV | E9: R$ 93,197.44 | F9: R$ 3,911,092.63 | G9: R$ 3,023,269.40 | H9: R$ 3,926,700.24 | I9: R$ 3,883,453.60 | J9: R$ 4,007,261.19
B10: TOTAL | E10: =SUM(E4:E9) -> R$ 279,499.99 | F10: R$ 7,128,960.03 | G10: R$ 8,244,355.84 | H10: R$ 8,174,007.34 | I10: R$ 8,082,350.38 | J10: R$ 8,430,269.28
B11: ARRECADAÇÃO DE JANEIRO A JUNHO/2023 | E11: =SUM(E10:J10) -> R$ 40,339,442.86
